bitfinex-derivatives/quotes_ETHF0:USTF0_20220103
["timestamp","ask_amount","ask_price","bid_price","bid_amount"]
[1641218548405,2.00479,3821.6,3820.7,3.31242055]
[1641218548807,2.00479,3822.0,3821.1,2.00479]
[1641218552312,2.00479,3822.0,3821.2,1.30745274]
[1641218553815,2.00479,3822.0,3821.1,2.00479]
[1641218554013,2.75019,3822.0,3821.1,2.00479]
[1641218557519,0.87722664,3821.5,3821.3,0.88368323]
[1641218557717,0.87722664,3821.5,3821.4,0.076609]
[1641218558217,0.87722664,3821.5,3821.4,0.204766]
[1641218558518,1.16645136,3821.7,3821.4,1.08844923]
[1641218558818,0.229991,3821.6,3821.4,0.88368323]
[1641218559019,1.16645136,3821.7,3821.4,0.88368323]
[1641218559817,0.229991,3821.6,3821.4,0.88368323]
[1641218561020,0.38051297,3821.5,3821.4,0.88368323]
[1641218563321,0.38051297,3821.5,3821.4,1.44031582]
[1641218564223,0.38051297,3821.5,3821.4,0.88368323]
[1641218565924,0.38051297,3821.5,3821.4,0.96029223]
[1641218566124,0.61050397,3821.5,3821.4,0.88368323]
[1641218566926,0.38051297,3821.5,3821.4,0.96029223]
[1641218567124,1.16645136,3821.7,3821.4,1.51692482]
[1641218567325,0.229991,3821.6,3821.4,1.44031582]
[1641218567826,0.38051297,3821.5,3821.4,0.88368323]
[1641218568125,0.38051297,3821.5,3821.4,0.96029223]
[1641218569525,1.16645136,3821.7,3821.4,1.51692482]
[1641218570227,1.16645136,3821.7,3821.4,1.44031582]
[1641218570425,1.16645136,3821.7,3821.5,0.076609]
[1641218570626,1.16645136,3821.7,3821.4,0.88368323]
[1641218571226,1.16645136,3821.7,3821.5,0.076609]
[1641218571731,1.729991,3821.6,3821.3,0.55662873]
[1641218571927,0.229991,3821.6,3820.6,1.76735993]
[1641218572128,1.5,3821.1,3820.6,1.76735993]
[1641218572330,1.5,3820.8,3820.3,5.09150762]
[1641218572535,1.5,3821.0,3820.3,5.09150762]
[1641218573129,1.5,3821.0,3820.3,2.95202202]
[1641218573330,1.5,3821.0,3820.2,2.00479]
[1641218576032,2.66659,3821.1,3820.2,2.00479]
[1641218576432,1.5,3820.5,3820.2,2.00479]
[1641218576731,0.229991,3820.4,3820.2,2.00479]
[1641218579932,1.30825496,3821.0,3820.2,2.00479]
[1641218580332,2.80825496,3821.0,3820.2,2.00479]
[1641218580632,1.30825496,3821.0,3820.2,2.00479]
[1641218581735,2.00479,3821.1,3820.2,2.00479]
[1641218582535,2.00479,3821.1,3820.2,3.18908171]
[1641218583737,2.00479,3821.1,3820.2,2.00479]
[1641218584640,3.17964721,3821.1,3820.2,2.00479]
[1641218586141,4.67964721,3821.1,3820.2,2.00479]
[1641218587145,3.17964721,3821.1,3820.2,2.00479]
[1641218587644,1.17485721,3821.0,3820.2,2.00479]
[1641218588243,1.17485721,3821.0,3820.3,0.128157]
[1641218588445,1.17485721,3821.0,3820.2,2.00479]
[1641218588646,1.5,3820.8,3819.0,0.8367]
[1641218588846,1.30849462,3820.3,3818.9,34.57058983]
[1641218589045,2.00479,3820.1,3819.2,4.21463332]
[1641218589244,2.52879,3820.1,3819.2,4.21463332]
[1641218591746,2.52879,3820.1,3819.2,2.00479]
[1641218592946,0.88243118,3820.0,3819.7,0.8887893]
[1641218593149,0.229991,3819.9,3819.7,0.8887893]
[1641218593648,0.229991,3819.9,3819.6,0.8887893]
[1641218596855,0.229991,3819.9,3819.7,0.8887893]
[1641218597754,0.229991,3819.9,3819.6,0.8887893]
[1641218598858,2.00479,3820.1,3819.6,0.8887893]
[1641218599858,2.88722118,3820.1,3819.6,0.8887893]
[1641218600756,2.00479,3820.1,3819.6,0.8887893]
[1641218604257,2.88722118,3820.1,3819.6,1.4456604]
[1641218605160,2.00479,3820.1,3819.6,1.4456604]
[1641218606659,2.00479,3820.1,3819.7,0.8887893]
[1641218611267,2.88722118,3820.1,3819.4,0.8887893]
[1641218612069,2.88722118,3820.1,3819.5,0.128157]
[1641218612269,2.88722118,3820.1,3819.5,0.885357]
[1641218612970,2.00479,3820.1,3819.5,1.7741463]
[1641218613170,2.00479,3819.7,3819.5,1.7741463]
[1641218613370,2.234781,3819.7,3819.5,1.6459893]
[1641218613570,2.00479,3819.7,3819.5,1.6459893]
[1641218614071,2.00479,3819.7,3819.5,1.7741463]
[1641218615074,2.00479,3819.7,3819.6,0.55683825]
[1641218618278,2.234781,3819.7,3819.6,0.55683825]
[1641218618578,2.00479,3819.7,3819.6,0.55683825]
[1641218619880,2.00479,3819.7,3819.6,1.7425361]
[1641218622180,2.234781,3819.7,3819.6,1.7425361]
[1641218622380,2.00479,3819.7,3819.6,1.7425361]
[1641218623083,2.00479,3819.7,3819.4,1.18569785]
[1641218623981,2.00479,3819.7,3819.6,0.55683825]
[1641218624584,2.00479,3819.7,3819.6,1.29953825]
[1641218625084,2.00479,3819.7,3819.6,1.92839785]
[1641218626384,2.00479,3819.7,3819.6,0.7427]
[1641218626785,2.00479,3819.7,3819.6,2.77990289]
[1641218627689,2.00479,3819.7,3819.6,1.29953825]
[1641218628589,1e-08,3819.7,3819.6,1.29953825]
[1641218628792,2.00479,3820.1,3819.6,1.29953825]
[1641218629595,2.00479,3820.1,3820.0,1.18553629]
[1641218629796,2.234781,3820.1,3820.0,1.18553629]
[1641218629996,2.00479,3820.1,3820.0,1.18553629]
[1641218630796,2.234781,3820.1,3820.0,1.18553629]
[1641218630996,2.234781,3820.1,3819.9,1.18553629]
[1641218633099,3.11721218,3820.1,3820.0,0.88952675]
[1641218634502,3.11721218,3820.1,3819.7,1.18553629]
[1641218634904,3.11721218,3820.1,3819.8,1.18553629]
[1641218635605,2.234781,3820.1,3819.8,1.18553629]
[1641218636007,0.47555202,3820.0,3819.8,1.18553629]
[1641218636209,1.65198262,3820.0,3819.7,0.88962069]
[1641218636405,0.229991,3819.9,3819.7,0.88962069]
[1641218637207,0.88487878,3819.8,3819.7,0.88962069]
[1641218638906,0.229991,3819.9,3819.7,0.88962069]
[1641218639108,0.47546032,3819.8,3819.6,0.88962069]
[1641218639407,2.00479,3819.7,3819.6,0.88962069]
[1641218639607,2.234781,3819.7,3819.6,0.88962069]
[1641218640310,2.234781,3819.7,3819.3,1.74237454]
[1641218640510,2.234781,3819.7,3819.4,1.18553629]
[1641218645621,2.234781,3819.7,3819.6,1.18553629]
[1641218645622,3.1197857,3819.7,3819.6,1.18553629]
[1641218646821,2.234781,3819.7,3819.6,1.18553629]
[1641218647021,2.234781,3819.7,3819.5,1.18553629]
[1641218647022,2.71163932,3819.7,3819.5,1.18553629]
[1641218647623,2.234781,3819.7,3819.5,1.18553629]
[1641218647823,0.88745492,3819.6,3819.5,1.18553629]
[1641218648524,0.47677857,3819.6,3819.5,1.18553629]
[1641218648723,0.47677857,3819.6,3819.3,1.18553629]
[1641218648925,0.229991,3819.5,3819.3,1.18553629]
[1641218649324,0.47677857,3819.6,3819.3,1.18553629]
[1641218649724,0.88731846,3819.5,3819.3,1.18553629]
[1641218650526,1.11730946,3819.5,3819.3,1.18553629]
[1641218652828,0.88731846,3819.4,3819.3,1.18553629]
[1641218653829,0.88731846,3819.5,3819.3,1.18553629]
[1641218654029,0.229991,3819.4,3819.3,1.18553629]
[1641218654229,0.88731846,3819.5,3819.3,1.18553629]
[1641218654830,0.88731846,3819.5,3819.1,2.03875861]
[1641218655431,0.88731846,3819.5,3819.4,1.18671919]
[1641218655630,1.11730946,3819.5,3819.4,1.18671919]
[1641218656231,0.88731846,3819.5,3819.4,1.18671919]
[1641218656934,1.11730946,3819.5,3819.4,1.18671919]
[1641218657133,0.88731846,3819.5,3819.4,1.18671919]
[1641218657936,0.88731846,3819.5,3819.1,1.61007736]
[1641218657937,0.88731846,3819.5,3819.3,1.18671919]
[1641218658738,0.88731846,3819.5,3819.1,1.628157]
[1641218658938,2.89210846,3819.7,3819.3,1.48192036]
[1641218660040,2.89210846,3819.7,3819.4,1.48192036]
[1641218660041,2.00479,3819.7,3819.4,1.48192036]
[1641218662340,0.229991,3819.6,3819.4,1.48192036]
[1641218664550,1.11730946,3819.6,3819.4,1.18635087]
[1641218668655,0.88731846,3819.6,3819.4,1.18635087]
[1641218668854,1.11730946,3819.6,3819.4,1.18635087]
[1641218669055,1.11730946,3819.6,3819.3,1.18635087]
[1641218669056,0.229991,3819.6,3819.3,1.18635087]
[1641218670057,1.016791,3819.6,3819.3,1.18635087]
[1641218670857,1.90410946,3819.6,3819.5,0.88931319]
[1641218676566,1.90410946,3819.6,3819.2,1.18635087]
[1641218676767,1.016791,3819.6,3819.3,1.18635087]
[1641218678568,1.016791,3819.6,3819.4,1.18635087]
[1641218679468,1.016791,3819.6,3819.3,1.18635087]
[1641218680272,1.90410946,3819.6,3819.5,0.88930223]
[1641218681673,1.90410946,3819.6,3819.2,1.18635087]
[1641218681877,1.016791,3819.6,3819.3,1.18635087]
[1641218682273,1.90410946,3819.6,3819.3,1.18635087]
[1641218683874,0.7868,3819.6,3819.3,1.18635087]
[1641218684075,2.89210846,3819.7,3819.3,1.18635087]
[1641218684276,0.229991,3819.5,3819.2,1.18635087]
[1641218684476,2.89210846,3819.7,3819.2,1.18635087]
[1641218684976,2.89210846,3819.7,3819.3,1.18635087]
[1641218686978,2.89210846,3819.7,3819.2,1.18635087]
[1641218687779,2.89210846,3819.7,3819.1,0.128157]
[1641218687780,2.00479,3819.7,3819.3,1.18635087]
[1641218688183,2.00479,3819.7,3819.4,1.5]
[1641218688379,0.88731846,3819.8,3819.6,1.5]
[1641218688581,0.88731846,3819.8,3819.3,1.86435087]
[1641218689583,0.88731846,3819.8,3819.3,0.678]
[1641218689783,0.88731846,3819.8,3819.3,2.00479]
[1641218689985,3.1812206,3820.1,3819.3,2.00479]
[1641218689986,2.00479,3820.1,3819.5,1.48192036]
[1641218690383,1.5,3820.0,3819.5,1.48192036]
[1641218690988,1.5,3820.0,3818.9,4.21463332]
[1641218690989,1.5,3819.6,3818.7,0.7421787]
[1641218691186,1.5,3819.6,3816.8,5.48]
[1641218691187,1.5,3819.3,3818.5,2.22262804]
[1641218691390,1.5,3819.0,3818.5,2.22262804]
[1641218691789,33.49404973,3818.6,3818.5,2.22262804]
[1641218691989,34.45194073,3818.6,3818.2,2.94658983]
[1641218692988,34.45194073,3818.6,3817.2,4.95137983]
[1641218693789,2.00479,3818.0,3817.2,4.95137983]
[1641218694091,2.00479,3818.0,3817.2,3.78204825]
[1641218694489,2.00479,3818.0,3817.2,3.91020525]
[1641218695089,2.00479,3818.0,3817.2,3.78204825]
[1641218696191,2.00479,3818.0,3817.2,2.00479]
[1641218697092,2.00479,3818.0,3817.2,3.7819997]
[1641218697693,1.5,3817.8,3817.2,1.7772097]
[1641218697894,2.00479,3817.3,3816.8,2.94658983]
[1641218699494,0.88817989,3817.2,3816.8,2.94658983]
[1641218699695,0.88817989,3817.2,3816.2,2.22603286]
[1641218699894,2.00479,3816.8,3816.2,2.22603286]
[1641218700098,2.55319,3816.8,3816.2,2.22603286]
[1641218700895,2.55319,3816.8,3816.6,1.48412915]
[1641218701101,0.229991,3816.7,3816.6,1.48412915]
[1641218702301,0.229991,3816.7,3816.4,1.48412915]
[1641218705407,2.89296989,3816.8,3816.4,1.48412915]
[1641218706008,0.88817989,3816.7,3816.3,1.48412915]
[1641218707410,2.00479,3816.8,3816.0,2.00479]
[1641218708411,33.56364249,3816.8,3816.0,2.00479]
[1641218709113,33.56364249,3816.8,3816.1,0.128157]
[1641218710312,33.56364249,3816.8,3816.0,2.00479]
[1641218710715,2.00479,3816.8,3816.0,2.00479]
[1641218710914,2.00479,3816.8,3816.0,3.50479]
[1641218711517,2.00479,3816.8,3816.2,1.5]
[1641218714519,2.00479,3816.8,3816.1,1.628157]
[1641218719020,2.00479,3816.8,3816.1,0.128157]
[1641218725129,2.00479,3816.8,3816.0,2.00479]
[1641218726131,2.00479,3816.8,3816.1,0.128157]
[1641218726330,2.00479,3816.8,3815.8,32.9092]
[1641218728233,2.00479,3815.9,3815.8,32.9092]
[1641218728433,2.00479,3815.9,3815.8,0.128157]
[1641218728634,1.00479,3815.9,3815.8,0.128157]
[1641218729435,0.08423599,3815.9,3815.8,0.128157]
[1641218731241,2.00479,3816.8,3815.8,0.128157]
[1641218732243,2.00479,3816.4,3815.8,0.128157]
[1641218738153,2.00479,3816.4,3815.9,1.5]
[1641218739150,2.00479,3816.4,3816.0,1.5]
[1641218739351,2.00479,3816.4,3815.8,0.128157]
[1641218740753,2.00479,3816.4,3815.6,1.30937183]
[1641218740953,2.00479,3816.4,3815.6,1.43752883]
[1641218745066,2.89296989,3816.4,3815.7,0.49550874]
[1641218745259,2.89296989,3816.4,3816.2,1.17624652]
[1641218745455,0.229991,3816.3,3816.2,1.17624652]
[1641218746558,0.229991,3816.3,3816.1,1.17624652]
[1641218747356,0.229991,3816.2,3816.1,1.17624652]
[1641218747559,0.88817989,3816.3,3816.1,1.17624652]
[1641218748357,0.229991,3816.2,3816.1,1.17624652]
[1641218748558,0.88817989,3816.3,3816.1,1.17624652]
[1641218748759,2.89296989,3816.4,3816.2,1.17624652]
[1641218749361,0.229991,3816.3,3816.2,1.17624652]
[1641218749561,0.229991,3816.3,3816.0,1.48412915]
[1641218750661,0.229991,3816.3,3815.9,1.48412915]
[1641218752465,2.00479,3816.0,3815.9,1.48412915]
[1641218752672,2.234781,3816.0,3815.6,1.48412915]
[1641218754071,2.234781,3816.0,3815.5,1.48412915]
[1641218754471,2.00479,3815.6,3815.5,1.48412915]
[1641218754673,2.69899,3815.6,3815.5,1.48412915]
[1641218754872,2.928981,3815.6,3815.5,1.48412915]
[1641218759677,2.928981,3815.6,3815.2,3.26508413]
[1641218759877,2.928981,3815.6,3815.2,1.48412915]
[1641218761882,1.5,3815.4,3815.2,1.48412915]
[1641218762083,2.81017469,3815.4,3814.9,1.78095498]
[1641218762581,11.22,3814.9,3814.3,2.94658983]
[1641218762781,1.5,3814.8,3813.3,2.00479]
[1641218762983,1.5,3814.1,3813.5,3.68301097]
[1641218763181,1.5,3814.0,3813.8,2.96842513]
[1641218763382,11.449991,3813.9,3813.8,2.96842513]
[1641218764384,15.459571,3813.9,3813.8,2.96842513]
[1641218764583,15.459571,3813.9,3813.5,3.68301097]
[1641218764783,1.5,3813.8,3813.5,3.68301097]
[1641218764984,0.229991,3813.7,3813.2,4.05137942]
[1641218765184,0.229991,3813.7,3812.3,2.00479]
[1641218765384,1.729991,3813.7,3812.3,2.00479]
[1641218765787,0.229991,3813.7,3812.3,2.00479]
[1641218766185,26.5806584,3813.5,3812.3,2.00479]
[1641218766587,2.00479,3813.2,3812.3,2.00479]
[1641218766787,2.71609,3813.2,3812.3,2.00479]
[1641218766989,0.88167987,3813.0,3812.3,2.00479]
[1641218767888,1.5,3812.4,3811.6,3.68301097]
[1641218768189,13.4296,3812.4,3811.6,3.68301097]
[1641218768388,13.4296,3812.4,3811.3,2.73439039]
[1641218768588,13.4296,3812.4,3810.4,29.9106]
[1641218768589,2.00479,3812.0,3811.8,3.71538303]
[1641218768787,0.229991,3811.9,3811.8,3.71538303]
[1641218770591,14.26140621,3811.9,3810.9,4.43432759]
[1641218770800,11.449991,3811.9,3810.6,2.97322178]
[1641218770992,1.5,3811.0,3810.6,2.97322178]
[1641218771193,1.31185047,3810.7,3810.6,2.97322178]
[1641218771393,4.198593,3810.9,3810.6,2.97322178]
[1641218771596,1.31161646,3811.2,3810.6,2.97322178]
[1641218771991,2.81161646,3811.2,3810.6,2.97322178]
[1641218772193,1.31169388,3811.0,3810.6,2.97322178]
[1641218772394,2.06319388,3811.0,3810.6,2.97322178]
[1641218772592,4.00958,3810.7,3810.6,2.97322178]
[1641218772795,4.239571,3810.7,3810.6,2.97322178]
[1641218772993,4.239571,3810.7,3810.1,1.48708799]
[1641218772994,5.4160016,3810.7,3810.1,1.48708799]
[1641218774292,5.4160016,3810.7,3809.9,1.48708799]
[1641218774293,0.87924023,3810.2,3809.9,1.48708799]
[1641218774493,2.00479,3810.0,3809.9,1.48708799]
[1641218775293,2.00479,3810.0,3809.0,1.5]
[1641218775493,2.234781,3810.0,3809.0,1.5]
[1641218775693,2.234781,3810.0,3809.1,1.5]
[1641218776095,2.00479,3810.0,3809.1,1.5]
[1641218776295,2.00479,3810.0,3808.9,2.81165603]
[1641218776696,2.00479,3810.0,3809.0,1.5]
[1641218776895,2.00479,3810.0,3808.9,1.31165603]
[1641218778296,2.00479,3810.0,3808.9,2.81165603]
[1641218778501,2.00479,3809.6,3808.9,2.81165603]
[1641218778697,2.00479,3809.6,3809.0,0.128157]
[1641218779097,2.00479,3809.6,3809.2,1.5]
[1641218779300,2.00479,3809.6,3809.0,0.128157]
[1641218779498,2.00479,3809.6,3809.3,1.5]
[1641218779699,2.00479,3809.6,3809.1,1.5]
[1641218779901,2.00479,3810.0,3809.0,1.628157]
[1641218780201,2.00479,3810.0,3809.0,0.128157]
[1641218780400,2.00479,3810.0,3808.9,1.31165603]
[1641218780603,2.00479,3809.6,3808.7,2.00479]
[1641218780801,2.00479,3809.6,3808.8,0.128157]
[1641218781700,2.00479,3809.6,3808.8,1.628157]
[1641218781900,2.00479,3809.6,3808.8,0.128157]
[1641218782602,2.00479,3809.6,3808.8,1.628157]
[1641218782801,2.00479,3809.6,3808.8,0.128157]
[1641218784204,2.00479,3809.6,3808.8,1.628157]
[1641218784404,2.00479,3809.6,3808.8,0.128157]
[1641218785906,2.00479,3809.6,3808.9,1.5]
[1641218786108,1.00479,3809.6,3809.2,1.5]
[1641218786307,2.00479,3810.0,3809.2,2.2428]
[1641218786510,2.00479,3810.4,3809.5,2.00479]
[1641218786708,2.00479,3810.4,3809.6,0.128157]
[1641218789815,64.3249,3811.6,3809.8,1.5]
[1641218790014,32.3696,3811.6,3809.8,2.81134642]
[1641218790214,32.3696,3811.6,3809.8,1.31134642]
[1641218790620,34.37439,3811.6,3810.7,2.00479]
[1641218790917,2.00479,3811.6,3810.8,0.128157]
[1641218791424,3.31626713,3811.6,3810.3,2.00479]
[1641218795224,2.00479,3811.6,3810.3,2.00479]
[1641218798327,2.00479,3811.6,3810.7,1.5]
[1641218798526,2.00479,3812.0,3810.8,0.128157]
[1641218798727,2.00479,3812.0,3811.4,2.00479]
[1641218804634,29.8035,3812.9,3811.9,2.00479]
[1641218804833,1.3110129,3813.0,3811.9,2.00479]
[1641218805034,2.00479,3813.1,3811.9,2.00479]
[1641218805435,1.3110129,3813.0,3811.9,2.00479]
[1641218806235,2.00479,3813.1,3811.9,2.00479]
[1641218806437,1.3110129,3813.0,3811.9,2.00479]
[1641218806636,1.3110129,3813.0,3812.3,2.00479]
[1641218807036,1.3110129,3813.0,3812.3,2.132947]
[1641218807438,2.00479,3813.1,3812.3,2.132947]
[1641218807639,2.00479,3813.1,3812.3,0.34800667]
[1641218808238,2.00479,3813.1,3812.3,0.21984967]
[1641218808638,2.00479,3813.1,3811.9,2.00479]
[1641218812744,2.00479,3812.0,3811.5,0.8687839]
[1641218812944,2.68269,3812.0,3811.5,0.9969409]
[1641218813345,3.56193023,3812.0,3811.5,0.128157]
[1641218815949,1.55714023,3812.0,3811.5,0.128157]
[1641218816150,0.87924023,3812.0,3811.5,0.128157]
[1641218816750,0.87924023,3812.0,3811.7,2.00479]
[1641218817353,0.229991,3811.9,3811.7,2.00479]
[1641218817551,0.6494,3811.9,3811.7,2.00479]
[1641218820654,0.879391,3811.9,3811.7,2.00479]
[1641218820954,0.6494,3811.9,3811.7,2.00479]
[1641218821553,0.229991,3811.8,3811.7,2.00479]
[1641218821754,0.6494,3811.9,3811.7,2.00479]
[1641218821955,1.1764306,3812.3,3811.7,4.33719]
[1641218822355,1.1764306,3812.3,3811.8,4.197491]
[1641218822859,1.1764306,3812.9,3812.2,2.00479]
[1641218824057,1.1764306,3813.0,3812.2,2.00479]
[1641218824658,1.1764306,3812.8,3812.2,2.00479]
[1641218825359,1.7590306,3812.8,3812.2,2.00479]
[1641218825758,0.55780783,3812.7,3812.2,2.00479]
[1641218828058,1.86893418,3812.7,3812.2,2.00479]
[1641218828260,0.55780783,3812.7,3812.2,2.00479]
[1641218831164,1.5,3812.3,3811.0,32.4805]
[1641218831363,1.5,3812.3,3810.8,1.16409845]
[1641218831563,1.5,3812.2,3810.8,1.16409845]
[1641218831763,3.36891699,3812.7,3810.8,1.16409845]
[1641218832866,2.00479,3811.9,3811.0,2.00479]
[1641218833063,2.66409,3811.9,3811.0,2.00479]
[1641218833263,2.66409,3811.9,3811.1,0.128157]
[1641218833664,2.66409,3811.9,3811.0,2.00479]
[1641218838067,0.55789726,3811.8,3811.0,2.00479]
[1641218838470,0.55789726,3811.8,3811.1,0.128157]
[1641218838870,2.66409,3811.9,3811.1,0.128157]
[1641218841411,1.5,3811.2,3810.6,1.16409845]
[1641218841976,1.5,3811.0,3810.6,1.16409845]
[1641218842176,2.0025,3811.0,3810.6,1.16409845]
[1641218842377,3.01326128,3811.0,3810.6,1.16409845]
[1641218842777,3.01326128,3811.0,3810.4,1.15256474]
[1641218842977,2.00479,3810.7,3810.4,1.15256474]
[1641218843180,0.229991,3810.6,3810.4,1.15256474]
[1641218843980,0.229991,3810.6,3810.2,0.128157]
[1641218844981,0.229991,3810.6,3809.9,1.15256474]
[1641218845182,0.229991,3810.6,3809.9,0.88912066]
[1641218846083,0.229991,3810.6,3809.8,2.00479]
[1641218846084,0.87679154,3810.5,3809.8,2.00479]
[1641218846684,0.87679154,3810.5,3809.8,2.132947]
[1641218847286,0.87679154,3810.5,3809.6,0.88912066]
[1641218848087,0.87679154,3810.5,3809.4,32.14949]
[1641218848088,0.87679154,3810.5,3809.5,0.88912066]
[1641218848686,0.87679154,3810.4,3809.5,1.1484981]
[1641218848887,0.87679154,3810.4,3809.6,0.128157]
[1641218849087,2.00479,3810.3,3809.6,0.128157]
[1641218852692,2.00479,3810.3,3809.7,1.5]
[1641218852893,0.87679154,3810.4,3809.9,1.5]
[1641218853093,0.87679154,3810.4,3810.3,2.00479]
[1641218853492,9.154e-05,3810.4,3810.3,2.00479]
[1641218853893,1.1764306,3810.7,3810.3,2.00479]
[1641218854294,3.1812206,3811.2,3810.3,2.132947]
[1641218856296,2.00479,3811.2,3810.3,2.132947]
[1641218857898,2.00479,3811.2,3810.3,3.632947]
[1641218858698,1.1764306,3810.8,3810.7,1.16409845]
[1641218859799,1.1764306,3810.8,3810.5,0.6814]
[1641218859999,1.73438987,3810.8,3810.6,1.75487353]
[1641218860199,0.78795027,3810.8,3810.6,1.75487353]
[1641218860497,0.55795927,3810.8,3810.6,1.75487353]
[1641218860699,1.1764306,3811.0,3810.6,1.75487353]
[1641218860898,1.46498255,3811.3,3810.6,1.75487353]
[1641218861101,1.46498255,3811.3,3810.8,1.5]
[1641218861299,1.46498255,3811.3,3811.0,2.00479]
[1641218861699,1.46498255,3811.3,3811.1,0.128157]
[1641218862501,2.00479,3811.5,3811.1,0.128157]
[1641218876113,2.00479,3811.5,3811.0,2.00479]
[1641218876314,2.55369,3811.5,3811.0,2.00479]
[1641218876713,1.31163023,3811.2,3811.0,2.00479]
[1641218876913,0.229991,3811.1,3811.0,2.00479]
[1641218877514,0.229991,3811.1,3810.2,2.89367632]
[1641218878116,0.87563367,3811.2,3810.4,0.128157]
[1641218878921,0.87563367,3811.1,3810.4,0.128157]
[1641218879617,2.00479,3811.0,3810.4,0.128157]
[1641218881441,2.88042367,3811.0,3810.4,0.128157]
[1641218882823,2.00479,3811.0,3810.4,0.128157]
[1641218883631,2.02297427,3810.9,3810.8,0.88888632]
[1641218883835,2.25296527,3810.9,3810.8,0.88888632]
[1641218884034,2.02297427,3810.9,3810.8,0.88888632]
[1641218885635,2.25296527,3810.9,3810.8,0.88888632]
[1641218886036,0.78798272,3810.9,3810.8,0.88888632]
[1641218887340,0.78798272,3810.9,3810.6,1.18516942]
[1641218887737,2.00479,3810.7,3810.6,1.18516942]
[1641218887938,2.234781,3810.7,3810.6,1.18516942]
[1641218888342,2.234781,3810.7,3810.4,1.18516942]
[1641218888742,0.55799172,3810.9,3810.6,1.5]
[1641218888942,0.55799172,3810.9,3810.6,2.2612]
[1641218889143,0.55799172,3810.9,3810.6,0.7612]
[1641218889341,2.00479,3811.0,3810.6,0.7612]
[1641218889541,1.75797906,3810.7,3810.6,0.7612]
[1641218889741,1.98797006,3810.7,3810.6,0.7612]
[1641218889947,2.52387006,3810.7,3810.0,1.18516942]
[1641218890942,2.52387006,3810.7,3810.6,0.26238528]
[1641218891143,0.765891,3810.7,3810.5,7.327e-05]
[1641218891742,4.00958,3810.6,3810.5,7.327e-05]
[1641218891942,2.00479,3810.6,3810.5,7.327e-05]
[1641218892543,2.234781,3810.6,3810.5,7.327e-05]
[1641218892743,2.234781,3810.6,3810.2,1.74614698]
[1641218892943,3.76276906,3810.6,3809.9,1.19042599]
[1641218893744,3.76276906,3810.6,3810.0,2.132947]
[1641218894146,2.00479,3810.6,3810.2,1.19042599]
[1641218895849,2.00479,3810.6,3810.0,3.19521599]
[1641218896048,2.73449,3810.6,3810.0,3.19521599]
[1641218896248,2.73449,3810.6,3810.0,1.19042599]
[1641218896649,3.68414341,3810.6,3810.0,1.19042599]
[1641218897352,1.75797906,3810.3,3809.6,1.19042599]
[1641218897751,2.00479,3809.8,3809.6,1.19042599]
[1641218898351,0.229991,3809.7,3809.6,1.19042599]
[1641218898550,2.54269,3809.8,3808.9,31.76529]
[1641218898753,2.00479,3809.8,3808.9,2.00479]
[1641218900054,2.00479,3809.8,3809.0,0.128157]
[1641218901054,2.00479,3809.8,3809.0,1.628157]
[1641218901253,2.00479,3809.8,3809.0,0.128157]
[1641218901654,2.00479,3809.8,3809.0,1.628157]
[1641218902658,2.00479,3809.8,3809.0,0.128157]
[1641218902857,2.00479,3809.8,3809.1,1.5]
[1641218903656,2.00479,3809.8,3809.0,0.128157]
[1641218903857,2.00479,3809.8,3809.0,1.628157]
[1641218904360,2.00479,3809.8,3809.0,0.128157]
[1641218905561,2.00479,3809.8,3809.0,1.628157]
[1641218905759,2.00479,3809.8,3809.0,0.128157]
[1641218907463,2.00479,3810.6,3809.0,0.128157]
[1641218907661,2.00479,3810.6,3809.0,0.673957]
[1641218907863,2.00479,3810.6,3809.5,2.00479]
[1641218910265,2.00479,3810.6,3809.0,0.128157]
[1641218910565,2.55109,3810.6,3809.0,0.128157]
[1641218911866,2.00479,3809.8,3809.0,0.128157]
[1641218912066,2.65799,3809.8,3809.0,0.128157]
[1641218912672,2.65799,3809.8,3808.9,2.00479]
[1641218913268,3.65668226,3809.8,3808.9,2.00479]
[1641218916871,5.15668226,3809.8,3808.9,2.00479]
[1641218917071,3.65668226,3809.8,3808.9,2.00479]
[1641218917373,5.15668226,3809.8,3808.9,2.00479]
[1641218917770,3.65668226,3809.8,3808.9,2.00479]
[1641218918172,5.15668226,3809.8,3808.9,2.00479]
[1641218918472,30.42218963,3808.8,3808.0,0.88652585]
[1641218918672,1.5,3808.5,3808.0,0.88652585]
[1641218919273,2.56884208,3808.5,3808.0,0.88652585]
[1641218919473,1.5,3808.3,3808.0,0.88652585]
[1641218919774,1.5,3808.1,3807.3,0.88652585]
[1641218919978,2.00479,3807.4,3807.0,1.19042599]
[1641218920177,3.86826004,3807.4,3807.0,1.19042599]
[1641218920375,2.55519,3807.4,3807.0,1.19042599]
[1641218921577,2.55519,3807.4,3806.4,1.74614698]
[1641218921779,2.55519,3807.4,3806.3,2.00479]
[1641218921982,2.00479,3806.8,3805.9,2.00479]
[1641218922179,2.00479,3806.8,3806.2,1.5]
[1641218922380,2.00479,3806.8,3806.0,0.128157]
[1641218922580,2.00479,3806.8,3806.0,1.44083922]
[1641218922981,2.00479,3806.8,3806.0,0.128157]
[1641218923581,2.00479,3806.8,3806.1,0.22491805]
[1641218924082,1.5,3806.7,3806.1,0.22491805]
[1641218924282,3.50479,3806.8,3806.1,0.22491805]
[1641218924483,2.00479,3806.8,3806.1,0.35307505]
[1641218924684,1.16090001,3808.6,3806.6,1.5]
[1641218924886,1.16090001,3808.6,3806.8,1.5]
[1641218925186,1.5,3808.5,3806.8,0.7195]
[1641218925383,1.5,3808.3,3806.8,0.7195]
[1641218925784,1.31258917,3808.4,3806.8,0.7195]
[1641218925985,2.00479,3807.8,3807.0,2.00479]
[1641218926385,2.60599,3807.8,3807.0,2.00479]
[1641218926586,2.60599,3807.8,3806.0,1.19042599]
[1641218926788,1.5,3807.7,3806.0,1.19042599]
[1641218926987,1.31297521,3807.3,3805.9,3.19521599]
[1641218927187,2.60599,3807.8,3805.9,3.19521599]
[1641218927586,1.31289592,3807.5,3805.9,3.19521599]
[1641218927987,2.00479,3806.7,3805.9,3.19521599]
[1641218928190,2.00479,3806.7,3806.0,0.128157]